Cogmind - Beta 16 @@@ ROGUE MODE // 2025.10.23 @ 22:02:55 Player: MORONI274 Result: Destroyed self with Light Ion Engine chain reaction Performance ------------- Evolutions (2) 1000 Regions Visited (5) 1000 Robots Destroyed (45) 225 Value Destroyed (1053) 1053 Prototype IDs (0) 0 Alien Tech Used (0) 0 Bonus (0) 0 TOTAL SCORE: 3278 Bonus ------- None Cogmind --------- Core Integrity 0/550 Matter 279/300 Energy 204/240 System Corruption 0% Temperature Cool (12) Movement Core (100) Ox1 Location -8/Storage Parts ------- > --- POWER (2) -------- Nuclear Core > --- PROPULSION (3) --- (None) > --- UTILITY (4) ------ Weight Redist. System Improved Sensor Array > --- WEAPON (2) ------- Shock Rifle > --- INVENTORY (5) ---- Disposable Heat Sink Large Matter Pod (0) Plasma Cutter Peak State ------------ > --- POWER ------------ Ion Engine Ion Engine > --- PROPULSION ------- Wheel Compact Wheel > --- UTILITY ---------- Small Storage Unit Large Matter Pod Reactive Plating System Shield > --- WEAPON ----------- Rocket Launcher Mini Grenade Launcher > --- INVENTORY -------- Compact Wheel Weight Redist. System Mini Grenade Launcher Plasma Cutter Axe [Rating: 17] Favorites ----------- Power Ion Engine Engine Ion Engine Power Core Nuclear Core Propulsion Light Treads Treads Light Treads Wheel Compact Wheel Utility Large Matter Pod Device Weight Redist. System Storage Large Matter Pod Hackware System Shield Protection Improved Light Armor Plating Weapon Assault Rifle Energy Gun EM Pulse Gun Ballistic Gun Assault Rifle Launcher Rocket Launcher Slashing Weapon Axe Build | -11 -10 -9 -9 -8 -8 ------- Run | Yrd Mat Mat Min Mat Sto Slots Evolved 4 | . . 2 . 2 . Power 1 | . . . . 1 . Propulsion 1 | . . 1 . . . Utility 2 | . . 1 . 1 . Weapon . | . . . . . . Parts Attached 27 | 6 1 7 1 9 3 Power 4 | 1 . . . 2 1 Engine 2 | 1 . . . 1 . Core 2 | . . . . 1 1 Reactor . | . . . . . . Propulsion 5 | 2 . 2 . 1 . Treads 2 | 2 . . . . . Leg . | . . . . . . Wheel 3 | . . 2 . 1 . Hover . | . . . . . . Flight . | . . . . . . Utility 9 | 1 1 2 . 4 1 Device 3 | . . . . 2 1 Storage 2 | 1 1 . . . . Processor . | . . . . . . Hackware 1 | . . . . 1 . Protection 3 | . . 2 . 1 . Artifact . | . . . . . . Weapon 9 | 2 . 3 1 2 1 Energy Gun 3 | 1 . 1 . . 1 Energy Cannon . | . . . . . . Ballistic Gun 1 | 1 . . . . . Ballistic Cannon . | . . . . . . Launcher 4 | . . 2 1 1 . Special Weapon . | . . . . . . Impact Weapon . | . . . . . . Slashing Weapon 1 | . . . . 1 . Piercing Weapon . | . . . . . . Special Melee Weapon . | . . . . . . Unidentified Prototypes . | . . . . . . Parts Lost 19 | . . 2 1 15 1 Power 3 | . . . . 3 . Propulsion 5 | . . 1 . 4 . Utility 5 | . . . . 5 . Weapon 6 | . . 1 1 3 1 Highest Loss Streak 14 | . . 2 1 14 1 To Critical Strikes . | . . . . . . Average Backups 6 | 1 6 7 8 5 1 Power . | . 1 1 1 . . Propulsion 1 | 1 2 1 1 . . Utility 1 | . . 2 3 1 . Weapon 1 | . 2 1 2 1 . Tool/Special . | . . . . . . Unused Backups 8 | . 1 5 . . 2 Power 1 | . . 1 . . . Propulsion 2 | . 1 1 . . . Utility 2 | . . 1 . . 1 Weapon 2 | . . 2 . . . Tool/Special 1 | . . . . . 1 Average Slot Usage (%) 89 | . 98 98 98 80 30 Engine 10 | . 14 11 11 11 . Treads 15 | . 28 15 11 2 . Wheel 11 | . . 16 21 15 . Device 1 | . . . . 1 11 Storage 21 | . 26 22 22 18 6 Protection 7 | . . 10 11 7 . Energy Gun 7 | . 14 7 4 . . Ballistic Gun 6 | . 14 6 . . . Launcher 6 | . . 7 16 15 . Peak Build Rating 17 | 6 7 14 13 17 12 Average Rating 10 | 4 6 12 12 14 7 On Entrance 7 | . 6 7 13 13 6 Avg Prop Armor Cover (%) 5 | . . 4 9 9 . Naked Turns . | . . . . . . Heaviest Build 33 | 14 17 25 25 33 14 Greatest Support 40 | 40 40 40 26 26 9 Greatest Overweight (x) 2 | . . 2 2 2 1 Average Overweight (x) . | . . . . . . Largest Inventory Capacity 8 | 8 8 8 8 8 5 Average Capacity 7 | 6 8 8 8 7 5 Most Carried 8 | 3 8 8 8 7 4 Average Carried 6 | 1 6 7 8 5 1 Final Capacity 8 | 8 8 8 8 5 5 Final Carried 8 | 3 8 8 8 1 3 Class Distribution -------------------- 100% | Mutant Dominant Class ---------------- Mutant | -10/Materials Mutant | -9/Materials Mutant | -9/Mines Mutant | -8/Materials Mutant | -8/Storage Resources | -11 -10 -9 -9 -8 -8 ----------- Run | Yrd Mat Mat Min Mat Sto Matter Collected 979 | 201 20 533 81 65 79 Remotely . | . . . . . . Salvage Created 912 | . 20 560 . 281 51 Parts 78 | . 1 52 . 19 6 Haulers Intercepted 2 | . . 2 . . . Recyclers Shooed . | . . . . . . Parts Field Recycled . | . . . . . . Retrieved Matter . | . . . . . . Parts Self-Destructed . | . . . . . . Prevented . | . . . . . . Parts Restored . | . . . . . . Kills | -11 -10 -9 -9 -8 -8 ------- Run | Yrd Mat Mat Min Mat Sto Combat Hostiles Destroyed 33 | . 1 18 . 12 2 Melee 2 | . . . . . 2 Guns 3 | . 1 2 . . . AOE 28 | . . 16 . 12 . Classes Destroyed 9 | . 1 7 . . 1 Worker 1 | . . . . . 1 Builder 4 | . . 4 . . . Hauler 2 | . . 2 . . . Recycler 2 | . . 2 . . . Operator 1 | . . 1 . . . Watcher 2 | . . 2 . . . Swarmer 14 | . 1 8 . 3 2 Grunt 12 | . . 7 . 5 . Sentry 7 | . . 3 . 4 . Best Kill Streak 8 | . 1 8 . 7 3 Combat Bots Only 7 | . 1 6 . 7 2 Max Kills in Single Turn 5 | . 1 5 . 3 1 Gunslinging . | . . . . . . Exploded 5 | . . 5 . 3 . Melee 1 | . . . . . 1 Uniques/NPCs Destroyed . | . . . . . . Combat | -11 -10 -9 -9 -8 -8 -------- Run | Yrd Mat Mat Min Mat Sto Hostile Shots Fired 214 | . 20 70 2 112 10 Missed 54 | . 4 18 . 31 1 Hits 160 | . 16 52 2 81 9 Projectile 160 | . 16 52 2 81 9 AOE 4 | . . . 4 . . Critical Strikes 3 | . . 1 . 2 . Damage Taken 2460 | . 128 699 182 1342 109 Core 805 | . 7 183 56 475 84 Absorbed by Shields . | . . . . . . Ignored by Resistances 28 | . . . . 28 . Core Remaining (%) 79 | 100 97 . 40 . . Volleys Fired 61 | . 5 32 2 21 1 Largest 2 | . 2 2 2 2 1 Hottest 98 | . 60 98 98 63 50 Shots Fired 96 | . 10 55 4 26 1 Gun 45 | . 10 32 2 . 1 Cannon . | . . . . . . Launcher 51 | . . 23 2 26 . Special . | . . . . . . Kinetic 26 | . 5 21 . . . Thermal 11 | . . 9 2 . . Explosive 51 | . . 23 2 26 . Electromagnetic 8 | . 5 2 . . 1 Robot Hit Streak 9 | . 1 7 9 4 2 Robot Miss Streak 4 | . 2 4 2 3 . Penetration Max . | . . . . . . Secondary Targets . | . . . . . . Shots Hit Robots 56 | . 4 32 2 15 3 Core Hits 77 | . 1 44 3 27 2 Critical Kills . | . . . . . . Critical Parts Destroyed . | . . . . . . Critical Strikes 1 | . . 1 . . . Burn 1 | . . 1 . . . Melee Attacks 6 | . . . . 1 5 Impact . | . . . . . . Slashing 6 | . . . . 1 5 Piercing . | . . . . . . Sneak Attacks . | . . . . . . Combat Hostiles . | . . . . . . Follow-up Attacks . | . . . . . . Damage Inflicted 3234 | . 61 1813 44 1161 155 Guns 364 | . 61 272 16 . 15 Cannons . | . . . . . . Explosions 2768 | . . 1541 28 1131 68 Melee 102 | . . . . 30 72 Ramming . | . . . . . . Kinetic 192 | . 26 166 . . . Thermal 167 | . . 83 16 . 68 Explosive 2700 | . . 1541 28 1131 . Electromagnetic 73 | . 35 23 . . 15 Impact . | . . . . . . Slashing 102 | . . . . 30 72 Piercing . | . . . . . . Highest Corruption . | . . . . . . Average Corruption . | . . . . . . Corruption Purged . | . . . . . . Corruption Blocked . | . . . . . . Overload Shots . | . . . . . . Overflow Damage 86 | . . 25 . 29 32 Projectiles . | . . . . . . Explosions 74 | . . 25 . 29 20 Melee 12 | . . . . . 12 Knockbacks . | . . . . . . Impact . | . . . . . . Kinetic . | . . . . . . Secondary . | . . . . . . Self-Inflicted Damage 394 | . . 163 . 193 38 Shots 13 | . . 6 . 6 1 Rammed . | . . . . . . Targets Rammed . | . . . . . . Kicked . | . . . . . . Crushed . | . . . . . . Highest Temperature 195 | . . 195 84 64 . Average Temperature 42 | . . 53 45 23 . Received Heat Transfer 612 | . . 198 . 414 . Siege Activations . | . . . . . . Martial Activations . | . . . . . . Shielding Activations . | . . . . . . Robots Disrupted . | . . . . . . Combat Hostiles . | . . . . . . Robots Corrupted . | . . . . . . Combat Hostiles . | . . . . . . Parts Fried . | . . . . . . Impact Corruptions . | . . . . . . Robots Melted . | . . . . . . Combat Hostiles . | . . . . . . Parts Melted . | . . . . . . Heat Transferred 396 | . . 259 37 . 100 Parts Sabotaged . | . . . . . . Parts Stolen . | . . . . . . Parts Stripped . | . . . . . . Power Chain Reactions 1 | . . . . . 1 Alert | -11 -10 -9 -9 -8 -8 ------- Run | Yrd Mat Mat Min Mat Sto Maximum Alert Level 1 | . . 1 . 1 . Low Security (%) 76 | 100 100 59 100 67 100 Level 1 23 | . . 40 . 32 . Level 2 . | . . . . . . Level 3 . | . . . . . . Level 4 . | . . . . . . Level 5 . | . . . . . . High Security . | . . . . . . Max Security . | . . . . . . Peak Influence 317 | . 56 299 97 317 105 Initial 100 | . . . 97 14 100 Average 97 | . 7 142 69 147 73 Influence Increases 1270 | . 66 648 20 444 92 Destroy 0b10 Robot/C 660 | . 20 360 . 240 40 Destroy 0b10 Robot/NC 60 | . . 55 . . 5 Destroy Leader 148 | . . 78 . 60 10 Disable Machine 60 | . 15 30 . 15 . Destroy Structure 267 | . 1 125 20 114 7 Partial Spotted 30 | . . . . . 30 Lose Combat Pursuer 45 | . 30 . . 15 . Influence Decreases 1188 | . 66 396 235 243 248 Entered New Map 316 | . . . 155 23 138 Time Decay 682 | . 66 376 70 70 100 Lost Part 190 | . . 20 10 150 10 Squads Dispatched 6 | . . 2 . 4 . Investigation 1 | . . . . 1 . Extermination . | . . . . . . Reinforcement 2 | . . 2 . . . Assault . | . . . . . . Garrison 3 | . . . . 3 . Intercept . | . . . . . . Searches Triggered . | . . . . . . Construction Impeded 1 | . . 1 . . . Haulers Reinforced . | . . . . . . Active Scanning Responses . | . . . . . . Cargo Convoy Interrupts . | . . . . . . Stealth | -11 -10 -9 -9 -8 -8 --------- Run | Yrd Mat Mat Min Mat Sto Distress Signals . | . . . . . . Communications Jammed . | . . . . . . Distress Signals . | . . . . . . Times Spotted 56 | . 3 29 2 19 3 Peak Tracking Total 7 | . 3 6 2 7 2 Tactical Retreats 2 | . 1 . . 1 . Traps | -11 -10 -9 -9 -8 -8 ------- Run | Yrd Mat Mat Min Mat Sto Traps Triggered . | . . . . . . Indirectly . | . . . . . . Trap Hack Attempts . | . . . . . . Triggered . | . . . . . . Disarmed . | . . . . . . Reprogrammed . | . . . . . . Reused . | . . . . . . Traps Extracted . | . . . . . . Installed . | . . . . . . Triggered . | . . . . . . Machines | -11 -10 -9 -9 -8 -8 ---------- Run | Yrd Mat Mat Min Mat Sto Machines Disabled 4 | . 1 2 . 1 . Max in Single Turn 1 | . 1 1 . 1 . Machines Repaired . | . . . . . . Machines Dismantled . | . . . . . . Machines Sabotaged . | . . . . . . Overloaded Fab Kills . | . . . . . . Hacking | -11 -10 -9 -9 -8 -8 --------- Run | Yrd Mat Mat Min Mat Sto Machines Accessed 2 | . . 1 . 1 . Terminals 1 | . . 1 . . . Fabricators . | . . . . . . Repair Stations . | . . . . . . Recycling Units . | . . . . . . Scanalyzers . | . . . . . . Garrison Access 1 | . . . . 1 . Total Hacks 3 | . . 1 . 2 . Successful 1 | . . 1 . . . Failed 2 | . . . . 2 . Catastrophic 2 | . . . . 2 . Database Lockouts . | . . . . . . Manual . | . . . . . . Terminals 1 | . . 1 . . . Fabricators . | . . . . . . Repair Stations . | . . . . . . Recycling Units . | . . . . . . Scanalyzers . | . . . . . . Garrison Access 2 | . . . . 2 . Terminal Hacks 1 | . . 1 . . . Alert Level 1 | . . 1 . . . Fabricator Hacks . | . . . . . . Repair Station Hacks . | . . . . . . Recycling Unit Hacks . | . . . . . . Scanalyzer . | . . . . . . Garrison Access Hacks . | . . . . . . Unauthorized Hacks . | . . . . . . Terminals . | . . . . . . Fabricators . | . . . . . . Repair Stations . | . . . . . . Recycling Units . | . . . . . . Scanalyzers . | . . . . . . Garrison Access . | . . . . . . Data Cores Recovered . | . . . . . . Used . | . . . . . . Hacking Detections 1 | . . . . 1 . Full Trace Events 1 | . . . . 1 . Feedback Events . | . . . . . . Feedback Blocked . | . . . . . . Robot Schematics Acquired . | . . . . . . Robots Built . | . . . . . . Authchips . | . . . . . . Time . | . . . . . . Total Robot Build Rating . | . . . . . . Part Schematics Acquired . | . . . . . . Parts Built . | . . . . . . Authchips . | . . . . . . Time . | . . . . . . Total Part Build Rating . | . . . . . . Part Studies Acquired . | . . . . . . Parts Repaired . | . . . . . . Time . | . . . . . . Parts Recycled . | . . . . . . Recycled Matter . | . . . . . . Retrieved Matter . | . . . . . . Retrieved Components . | . . . . . . Parts Scanalyzed . | . . . . . . Part Schematics Acquired . | . . . . . . Parts Damaged . | . . . . . . Bothacking | -11 -10 -9 -9 -8 -8 ------------ Run | Yrd Mat Mat Min Mat Sto Used RIF Installer . | . . . . . . Robots Hacked . | . . . . . . Non-combat . | . . . . . . Combat . | . . . . . . Robot Hacks Applied . | . . . . . . Relay Couplers Released . | . . . . . . Fabnet Peak Effective % . | . . . . . . Robots Rewired . | . . . . . . Allies Hacked . | . . . . . . Hacks Repelled . | . . . . . . Allies | -11 -10 -9 -9 -8 -8 -------- Run | Yrd Mat Mat Min Mat Sto Total Allies . | . . . . . . Largest Group . | . . . . . . Highest-Rated Group . | . . . . . . Highest-Rated Ally . | . . . . . . Total Orders . | . . . . . . Ally Attacks . | . . . . . . Total Damage . | . . . . . . Kills . | . . . . . . Allies Corrupted . | . . . . . . Allies Melted . | . . . . . . Intel | -11 -10 -9 -9 -8 -8 ------- Run | Yrd Mat Mat Min Mat Sto Active Infowar (turns) 61 | . . . . . 61 Sensors 61 | . . . . . 61 Robot Analysis Total . | . . . . . . Derelict Logs Recovered 1 | . . . 1 . . Drone Launches . | . . . . . . Drone Recoveries . | . . . . . . Exploration | -11 -10 -9 -9 -8 -8 ------------- Run | Yrd Mat Mat Min Mat Sto Turns Passed 2159 | 118 413 1110 154 158 206 Spaces Moved 1365 | 77 244 572 158 98 216 Core 235 | 15 . . . 4 216 Treads 774 | 62 244 468 . . . Legs . | . . . . . . Wheels 356 | . . 104 158 94 . Hover . | . . . . . . Flight . | . . . . . . Fastest Speed 50 | 50 160 90 90 50 50 Average Speed 136 | 138 160 175 90 99 58 Slowest Speed 240 | 160 160 240 110 130 100 Overloaded Moves . | . . . . . . Propulsion Burnouts . | . . . . . . Robots Hopped . | . . . . . . Potential Cave-ins . | . . . . . . Cave-ins Triggered . | . . . . . . Exploration Rate (%) 21 | 6 24 38 29 11 22 Regions Visited 5 Branch Regions 2 Pre-discovered Areas . | . . . . . . Known Exits Taken 1 | . . . . 1 . Unknown Exits Taken 4 | 1 1 1 1 . . Scrap Searched 2 | . . . 2 . . Spaces Dug . | . . . . . . Terrain Destroyed 358 | . . 161 23 168 6 Melee . | . . . . . . Projectile . | . . . . . . AOE 358 | . . 161 23 168 6 Terrain Rammed . | . . . . . . Walls Destroyed . | . . . . . . Machines Disabled . | . . . . . . Actions | -11 -10 -9 -9 -8 -8 --------- Run | Yrd Mat Mat Min Mat Sto Total 1547 | 85 257 626 164 128 287 Wait 61 | . 1 . 1 . 59 Move 1360 | 76 243 571 157 97 216 Hop . | . . . . . . Pick Up 19 | 3 6 8 . . 2 Fast Attach 16 | 6 1 3 2 2 2 Attach 11 | . . 3 . 7 1 Detach 1 | . . . . . 1 Swap 1 | . . 1 . . . Drop 10 | . 1 8 1 . . Fire 61 | . 5 32 2 21 1 Melee 6 | . . . . 1 5 Ram . | . . . . . . Kick . | . . . . . . Crush . | . . . . . . Escape Stasis . | . . . . . . Rewire 1 | . . . 1 . . Trap . | . . . . . . Miscellaneous . | . . . . . . Route ------- -11/Scrapyard -10/Materials -9/Materials (discovered 2 exits: *Mat / [*Min]) -9/Mines -8/Materials -8/Storage History --------- Turn | Location | Event 6 | -11/Scrapyard | Discovered new exit (range 16) 119 | -11/Scrapyard | Entered Materials 306 | -10/Materials | Build established: Mutant 391 | -10/Materials | Discovered new exit (range 15) 532 | -10/Materials | Entered another Materials area 532 | -9/Materials | Evolved 2 slots: Propulsion x1, Utility x1 1357 | -9/Materials | Discovered new exit (range 12) 1615 | -9/Materials | Discovered new exit (range 12) 1642 | -9/Materials | Entered Mines 1643 | -9/Mines | Assembled infested the area 1678 | -9/Mines | Met 8R-AWN 1703 | -9/Mines | Core integrity fell below 50% 1791 | -9/Mines | Discovered new exit (range 5) 1796 | -9/Mines | Entered Materials 1796 | -8/Materials | Evolved 2 slots: Power x1, Utility x1 1797 | -8/Materials | Identified exit to Storage 1932 | -8/Materials | Core integrity fell below 50% 1951 | -8/Materials | Core integrity fell below 20% 1953 | -8/Materials | Destroyed 7 combat bots 1954 | -8/Materials | Entered Storage 1984 | -8/Storage | Lost 14 parts (3p3n5u3w) 2160 | -8/Storage | Destroyed self with Light Ion Engine chain reaction Last Messages --------------- 01951_ Sml. Storage Unit destroyed. 01951_ U-05 Engineer builds a Wall. 01953_ Slug penetrates Earth. 01953_ System Shield destroyed. LOCATION=STORAGE GOAL=ESCAPE 01973_ K-01 Serf collects debris. 01980_ K-01 Serf cleans the Recycling Unit. 02074_ K-01 Serf collects debris. 02099_ Acquired Imp. Sensor Array. 02102_ Acquired 79 matter. 02105_ Acquired Nuclear Core. 02109_ Acquired Shock Rifle. 02115_ Acquired Disposable Heat Sink. 02148_ Destroyed Flight Unit. 02148_ S-10 Pest destroyed. 02157_ Axe destroyed. 02160_ Chain reaction triggered in Lgt. Ion Engine. 02160_ Destroyed Flight Unit. Map ----- +----------------------------------------------------+ | ?????????##########?# #?# "??"" # # #??? | | ????????????????????# #?# ""??" # # #??? | | ????????????????????# #?# "???" # # #??? | | ????????????????????# #?# """"" ## #??? | | ????????????????????# #?# ## #??? | | ????????????????????# #####+##+##### #??? | | ????????????????????# """ #???# #??? | | ????????????????????# "Y" #???# #??? | | ????????????????????# ##### #??? | | ????????????????????# #??? | | ????????????????????# ########+##+#??? | | ???????????????????## # # ????? | | ???????????????????# + # """ ??? | | ???????????????????# """ # # """ #? | | ???????????????????# """ # # """ ##? | | ?????????????##"???## """ # # #?? | | ?????????????# ? ??# # #########?? | | ???????????? / """ # # ## #?? | | ?????????????# """ + # ## #?? | | ?????????????# """ ####### # ## #?? | | ?????????????# ????????# ##+#### #?? | | ?????????????###??????????# + #?? | | ??????????????????????????# # #?? | | ??????????????????????????# ##+#####?? | | ?????????????????????##"### #?????? | | ?????????????????????#T @; ##########?????? | | ?????????????????????## %s*#??????????????? | | ??????????????????????###;;[;??????????????? | | ??????????????????????????#r#??????????????? | | ??????????????????????????# #??????????????? | | ?????????????????????????? +??????????????? | | ??????????????????????????###??????????????? | | ???????????????????????????????????????????? | | ???????????????????????????????????????????? | | ???????????????????????????????????????????? | | ???????????????????????????????????????????? | | ???????????????????????????????????????????? | | ???????????????????????????????????????????? | | ???????????????????????????????????????????? | | ???????????????????????????????????????????? | | ???????????????????????????????????????????? | | ???????????????????????????????????????????? | | ???????????????????????????????????????????? | | ???????????????????????????????????????????? | | ???????????????????????????????????????????? | | ???????????????????????????????????????????? | | ???????????????????????????????????????????? | | ???????????????????????????????????????????? | | ???????????????????????????????????????????? | | ???????????????????????????????????????????? | +----------------------------------------------------+ Best States ------------- Heat Dissipation 31 Energy Generation 15 Energy Capacity 400 Matter Stores 450 Matter Capacity 450 Sight Range 16 Robot Scan Range 15 Terrain Scan Density 10 Additional Mass Support 6 Armor Coverage 150 Resistance: KI 20 Evasion (%) 50 Recoil Reduction 2 Defensive Hacking 10 Item Schematics ----------------- None Robot Schematics ------------------ None Fabricated ------------ Nothing Repaired ---------- Nothing Studied --------- None Alien Tech Used ----------------- None Achievements -------------- Quick And Dirty Resistances Are Futile Challenges ------------ None Game ------ Seed RemoteSpreadSink Manual? 0 Play Time 00:21:28 Cumulative 14.2 hours Start 2025.10.23 @ 21:41:59 End 2025.10.23 @ 22:02:55 Sessions 1 Manual Loads 0 Difficulty Rogue Special Mode None Game No. 28 Rogue 28 Adventurer 0 Explorer 0 Win Type - Total 0 Types 0/0/0/0/0/0/0/0/0/0 Lore% 8 Gallery% 17 Achievement% 13 Wizard Run 0 Options --------- Layout 1 ASCII 0 Keyboard 1 Movement Arrows Keybinds 0 Fullscreen 1 Font 24/Smallcaps Map View 50x35 Zoom Use 0% Tactical HUD 1 Map Filters NONE Filters NONE Steam 1 RUN: d0d90404-c219-4986-b48a-902faf0532f2